bitfinex-derivatives/quotes_SOLF0:USTF0_20250311
["timestamp","ask_amount","ask_price","bid_price","bid_amount"]
[1741666128813,52.14130822,120.59,120.51,52.14130822]
[1741666129719,0.06280046,120.56,120.54,7.896e-05]
[1741666129927,60.61970822,120.55,120.54,7.896e-05]
[1741666130226,66.99780822,120.55,120.54,7.896e-05]
[1741666130424,69.47780822,120.55,120.54,7.896e-05]
[1741666131614,66.99780822,120.55,120.54,7.896e-05]
[1741666132626,49.9365,120.55,120.54,7.896e-05]
[1741666133728,14.6765,120.55,120.54,7.896e-05]
[1741666133921,50.0365,120.55,120.54,7.896e-05]
[1741666136924,45.8238,120.55,120.54,7.896e-05]
[1741666137530,8.2984,120.55,120.54,7.896e-05]
[1741666138230,0.06280046,120.56,120.54,7.896e-05]
[1741666139229,8.2984,120.55,120.54,7.896e-05]
[1741666140825,25.35970822,120.55,120.54,7.896e-05]
[1741666141531,19.54130822,120.55,120.46,4.1881]
[1741666141727,17.06130822,120.52,120.46,1.9895]
[1741666141921,17.06130822,120.5,120.43,92.06929108]
[1741666142124,8.305,120.46,120.44,92.06929108]
[1741666142831,8.3053,120.45,120.44,92.12549884]
[1741666143025,0.05323921,120.46,120.44,92.12549884]
[1741666144326,0.05323921,120.46,120.45,25.36660822]
[1741666144831,0.05323921,120.46,120.45,17.06130822]
[1741666145128,0.05323921,120.46,120.44,0.05620776]
[1741666145832,8.3053,120.45,120.44,0.05620776]
[1741666146031,0.05323921,120.46,120.44,0.05620776]
[1741666146429,8.35793921,120.46,120.44,0.05620776]
[1741666146931,0.05323921,120.46,120.44,0.05620776]
[1741666147122,8.3053,120.45,120.44,0.05620776]
[1741666147521,35.4,120.45,120.39,17.06130822]
[1741666147725,8.3078,120.42,120.39,17.06130822]
[1741666147931,8.3078,120.42,120.38,8.31]
[1741666148121,8.3085,120.41,120.37,25.37200822]
[1741666148933,0.05384459,120.4,120.38,0.0621454]
[1741666149135,35.4,120.45,120.39,17.06130822]
[1741666149432,0.06347917,120.4,120.37,17.06130822]
[1741666149633,35.4,120.45,120.41,0.06335905]
[1741666149930,8.3072,120.43,120.42,0.06306003]
[1741666150928,0.05500678,120.44,120.42,0.06306003]
[1741666151128,0.05500678,120.44,120.43,52.98130822]
[1741666151328,0.05500678,120.44,120.43,35.92]
[1741666151935,17.06130822,120.5,120.43,52.98130822]
[1741666152128,290.88130822,120.52,120.45,17.06130822]
[1741666152333,290.88130822,120.52,120.43,57.37290822]
[1741666152533,8.3049,120.46,120.43,57.37290822]
[1741666152726,53.02130822,120.5,120.43,57.37290822]
[1741666153026,290.88130822,120.52,120.43,57.37290822]
[1741666153231,0.05557606,120.48,120.45,0.05909374]
[1741666153735,8.3046,120.46,120.45,0.05909374]
[1741666154633,36.0,120.47,120.4,36.02]
[1741666154933,36.0,120.47,120.39,17.06130822]
[1741666155137,8.3056,120.45,120.41,8.3077]
[1741666155525,36.0,120.47,120.41,17.06130822]
[1741666155826,0.06069111,120.44,120.42,8.36683046]
[1741666156029,0.06069111,120.44,120.42,0.05943046]
[1741666157337,8.3067,120.43,120.42,0.05943046]
[1741666158033,0.06069111,120.44,120.42,0.05943046]
[1741666158938,8.3067,120.43,120.42,0.05943046]
[1741666159139,0.06069111,120.44,120.42,0.05943046]
[1741666160638,8.36669111,120.44,120.42,0.05943046]
[1741666161845,8.3067,120.43,120.42,0.05943046]
[1741666164541,8.36709111,120.44,120.42,0.05943046]
[1741666165034,0.06069111,120.44,120.42,8.36623046]
[1741666165233,0.06069111,120.44,120.42,0.05943046]
[1741666167042,8.3067,120.43,120.42,0.05943046]
[1741666167733,0.06069111,120.44,120.42,0.05943046]
[1741666169842,8.36719111,120.44,120.42,0.05943046]
[1741666170242,8.3067,120.43,120.42,0.05943046]
[1741666175347,8.3067,120.43,120.36,2.0445]
[1741666175348,19.56130822,120.43,120.33,137.88068201]
[1741666175542,309.4,120.45,120.33,137.88068201]
[1741666175543,8.3108,120.37,120.33,141.98808201]
[1741666175737,35.44,120.39,120.33,141.98808201]
[1741666176448,8.36310995,120.38,120.35,0.06237412]
[1741666176646,0.05260995,120.38,120.35,0.06237412]
[1741666177147,8.36310995,120.38,120.35,0.06237412]
[1741666177447,0.05260995,120.38,120.35,0.06237412]
[1741666179049,8.3115,120.36,120.35,0.06237412]
[1741666181250,35.2,120.36,120.29,144.33297201]
[1741666181453,8.3146,120.32,120.29,144.33297201]
[1741666181749,35.2,120.36,120.29,144.33297201]
[1741666182452,0.06048776,120.34,120.31,0.05423202]
[1741666183552,0.06048776,120.34,120.31,8.36893202]
[1741666185048,0.06048776,120.34,120.31,0.05423202]
[1741666186146,8.3143,120.32,120.31,0.05423202]
[1741666186451,0.06048776,120.34,120.31,0.05423202]
[1741666186654,8.3143,120.32,120.31,0.05423202]
[1741666187249,8.3139,120.33,120.31,0.05423202]
[1741666187647,0.06048776,120.34,120.31,0.05423202]
[1741666187846,8.3143,120.32,120.31,0.05423202]
[1741666188951,8.314,120.33,120.31,0.05423202]
[1741666189648,8.3143,120.32,120.31,0.05423202]
[1741666193955,8.3171,120.28,120.23,317.70929108]
[1741666194149,8.3171,120.28,120.25,17.06130822]
[1741666194551,34.64,120.32,120.23,307.83463364]
[1741666194851,8.3182,120.27,120.23,149.28743364]
[1741666195051,8.3182,120.27,120.26,0.05469053]
[1741666196360,8.3195,120.25,120.21,25.38280822]
[1741666197152,8.3187,120.26,120.22,8.3211]
[1741666197351,0.06386443,120.24,120.22,8.37886768]
[1741666197956,0.06386443,120.24,120.22,0.05776768]
[1741666198459,8.38366443,120.24,120.22,0.05776768]
[1741666199448,0.06386443,120.24,120.22,0.05776768]
[1741666200251,8.38396443,120.24,120.22,0.05776768]
[1741666200557,0.06386443,120.24,120.22,0.05776768]
[1741666201154,0.06386443,120.24,120.23,8.3205]
[1741666202256,0.06386443,120.24,120.23,25.38180822]
[1741666202456,34.42,120.29,120.23,17.06130822]
[1741666202653,34.42,120.29,120.25,8.3187]
[1741666202948,17.06130822,120.35,120.25,17.06130822]
[1741666203152,6.3429,120.36,120.31,17.06130822]
[1741666203353,17.06130822,120.39,120.31,51.48130822]
[1741666203651,0.05341016,120.36,120.34,0.05831581]
[1741666204260,17.06130822,120.35,120.28,25.37820822]
[1741666204559,19.21600822,120.35,120.28,17.06130822]
[1741666205353,8.3137,120.33,120.28,25.37790822]
[1741666205657,0.06399631,120.33,120.3,17.12190064]
[1741666206255,0.06399631,120.33,120.31,8.315]
[1741666206655,0.06399631,120.33,120.31,27.3394199]
[1741666206860,0.06399631,120.33,120.31,29.3856199]
[1741666207362,0.06399631,120.33,120.32,8.3143]
[1741666207660,0.06399631,120.33,120.31,29.3856199]
[1741666208258,0.06399631,120.33,120.31,2.0462]
[1741666210359,38.4682,120.4,120.31,31.3916199]
[1741666210558,38.4682,120.4,120.32,2.0036]
[1741666210858,8.3106,120.38,120.34,8.3125]
[1741666211360,38.4682,120.4,120.33,34.28]
[1741666211559,0.05363619,120.37,120.35,0.05327682]
[1741666211754,34.29363619,120.37,120.35,0.05327682]
[1741666211955,36.79363619,120.37,120.27,4.1991]
[1741666212160,27.3394199,120.36,120.27,4.1991]
[1741666212464,8.3141,120.33,120.27,4.1991]
[1741666212664,34.22,120.34,120.26,123.12917518]
[1741666212864,4.0538,120.33,120.26,123.12917518]
[1741666213063,8.37347895,120.31,120.29,0.06248747]
[1741666213361,0.05847895,120.31,120.29,0.06248747]
[1741666213662,8.3157,120.3,120.29,0.06248747]
[1741666214959,0.05847895,120.31,120.29,0.06248747]
[1741666215757,8.37367895,120.31,120.29,0.06248747]
[1741666216165,0.05847895,120.31,120.29,0.06248747]
[1741666217270,8.37347895,120.31,120.29,0.06248747]
[1741666217568,0.05847895,120.31,120.29,0.06248747]
[1741666217766,8.37417895,120.31,120.29,0.06248747]
[1741666217971,0.05847895,120.31,120.29,0.06248747]
[1741666218272,8.3157,120.3,120.29,0.06248747]
[1741666219171,8.37377895,120.31,120.29,0.06248747]
[1741666219368,0.05847895,120.31,120.29,0.06248747]
[1741666220468,8.37367895,120.31,120.29,0.06248747]
[1741666220766,0.05847895,120.31,120.29,0.06248747]
[1741666221172,0.05847895,120.31,120.29,8.37868747]
[1741666221367,34.01847895,120.31,120.29,0.06248747]
[1741666221568,8.3157,120.3,120.29,0.06248747]
[1741666223267,8.3157,120.3,120.29,8.747e-05]
[1741666223670,10.3493,120.3,120.29,8.747e-05]
[1741666224071,10.3493,120.3,120.2,92.06929108]
[1741666224072,8.3208,120.23,120.2,92.06929108]
[1741666224275,33.92,120.27,120.2,92.06929108]
[1741666224467,36.0871,120.26,120.2,92.06929108]
[1741666224673,8.3202,120.24,120.2,100.39179108]
[1741666224868,36.0871,120.26,120.2,100.39179108]
[1741666225080,36.0871,120.26,120.2,92.06929108]
[1741666225269,8.3213,120.22,120.2,92.06929108]
[1741666225674,8.3213,120.22,120.2,92.13072527]
[1741666225878,0.05863553,120.24,120.2,92.13072527]
[1741666226078,8.3208,120.23,120.2,92.13072527]
[1741666226877,0.05863553,120.24,120.2,92.13072527]
[1741666227076,8.37863553,120.24,120.2,92.13072527]
[1741666227783,8.37863553,120.24,120.2,100.45312527]
[1741666228281,8.37863553,120.24,120.2,8.38383419]
[1741666228677,0.05863553,120.24,120.21,17.11884563]
[1741666228883,0.05863553,120.24,120.21,50.85884563]
[1741666229384,0.05863553,120.24,120.22,8.3208]
[1741666230982,0.05863553,120.24,120.23,17.11884563]
[1741666231180,35.7536,120.3,120.23,17.11884563]
[1741666231584,8.3181,120.27,120.23,17.11884563]
[1741666231778,35.7536,120.3,120.23,17.11884563]
[1741666232389,17.17607853,120.28,120.25,0.05249331]
[1741666232589,33.96,120.27,120.25,0.05249331]
[1741666232790,8.3184,120.26,120.25,0.05249331]
[1741666233195,0.05490442,120.28,120.25,0.05249331]
[1741666233399,0.05490442,120.28,120.25,25.48983894]
[1741666233581,0.05490442,120.28,120.25,17.17133894]
[1741666234095,0.05490442,120.28,120.25,25.49013894]
[1741666234687,0.05490442,120.28,120.25,17.17133894]
[1741666234894,0.05490442,120.28,120.25,0.05249331]
[1741666235486,8.3177,120.27,120.25,0.05249331]
[1741666235686,0.05490442,120.28,120.25,0.05249331]
[1741666236191,8.3184,120.26,120.25,0.05249331]
[1741666237693,0.05490442,120.28,120.25,17.17133894]
[1741666238087,0.05490442,120.28,120.26,33.9]
[1741666238390,33.88,120.36,120.27,27.35414108]
[1741666238592,33.88,120.36,120.27,31.37644108]
[1741666238787,8.314,120.33,120.27,12.3399]
[1741666239694,0.05671002,120.31,120.29,0.0580016]
[1741666241596,0.05671002,120.31,120.29,33.9780016]
[1741666242700,0.05671002,120.31,120.3,8.3157]
[1741666244792,4.2164,120.37,120.34,8.3125]
[1741666245194,2.1433,120.38,120.32,33.84]
[1741666245590,8.3096,120.39,120.35,8.3118]
[1741666245887,0.05792634,120.36,120.35,8.3118]
[1741666247292,0.05792634,120.36,120.34,0.0572785]
[1741666251003,8.37012634,120.36,120.34,0.0572785]
[1741666251703,8.3122,120.35,120.34,0.0572785]
[1741666252306,8.36962634,120.36,120.34,0.0572785]
[1741666252598,0.05792634,120.36,120.34,0.0572785]
[1741666252802,8.3122,120.35,120.34,0.0572785]
[1741666253598,8.37002634,120.36,120.34,0.0572785]
[1741666254706,0.05792634,120.36,120.34,0.0572785]
[1741666254900,8.3122,120.35,120.34,0.0572785]
[1741666255402,0.05792634,120.36,120.34,0.0572785]
[1741666256404,0.05792634,120.36,120.34,33.6572785]
[1741666257206,8.36942634,120.36,120.34,33.6572785]
[1741666258411,2.0463,120.42,120.38,8.3098]
[1741666258412,8.3074,120.42,120.38,8.3098]
[1741666258608,2.1454,120.45,120.37,33.6]
[1741666258908,2.1454,120.45,120.37,60.95414108]
[1741666259610,0.06189428,120.42,120.4,0.06387125]
[1741666260105,2.1532,120.46,120.4,33.66387125]
[1741666260302,44.0674,120.48,120.42,8.3069]
[1741666260701,44.0674,120.48,120.4,33.6]
[1741666261006,8.3039,120.47,120.4,33.6]
[1741666261409,0.06024969,120.45,120.42,0.06272949]
[1741666262609,0.06024969,120.45,120.42,8.36952949]
[1741666262801,0.06024969,120.45,120.42,0.06272949]
[1741666263009,0.06024969,120.45,120.43,33.6]
[1741666263307,0.06024969,120.45,120.44,8.306]
[1741666264010,8.3013,120.51,120.46,8.3041]
[1741666264411,10.4049,120.52,120.47,8.3038]
[1741666265007,0.05641533,120.51,120.48,0.05333479]
[1741666265903,0.05641533,120.51,120.48,8.35653479]
[1741666266310,0.05641533,120.51,120.48,0.05333479]
[1741666266510,0.05641533,120.51,120.49,41.9019]
[1741666266707,0.05641533,120.51,120.49,33.6]
[1741666267110,0.05641533,120.51,120.49,41.9023]
[1741666267311,0.05641533,120.51,120.49,33.6]
[1741666268317,6.3484,120.55,120.49,60.95414108]
[1741666268622,34.02,120.58,120.49,60.95414108]
[1741666268818,8.2981,120.56,120.51,8.3007]
[1741666269019,8.2981,120.56,120.49,63.09504108]
[1741666269216,34.02,120.58,120.49,63.09504108]
[1741666269716,0.05981627,120.55,120.52,0.06284101]
[1741666269922,0.05981627,120.55,120.52,34.08284101]
[1741666270414,0.05981627,120.55,120.52,42.38314101]
[1741666271317,0.05981627,120.55,120.53,8.2997]
[1741666271521,0.05981627,120.55,120.52,34.08284101]
[1741666271820,8.35861627,120.55,120.52,34.08284101]
[1741666272021,0.05981627,120.55,120.52,34.08284101]
[1741666272819,36.0676,120.61,120.52,34.08284101]
[1741666273017,8.2971,120.57,120.54,8.2988]
[1741666273522,8.2952,120.6,120.56,8.2977]
[1741666273922,0.04485678,120.59,120.57,0.06251007]
[1741666274316,8.34055678,120.59,120.57,0.06251007]
[1741666274517,0.04485678,120.59,120.57,0.06251007]
[1741666274914,0.04485678,120.59,120.57,8.35911007]
[1741666275419,10.411,120.64,120.6,8.295]
[1741666275829,4.2583,120.66,120.59,27.35414108]
[1741666276627,4.2583,120.66,120.61,0.06109281]
[1741666276827,8.2928,120.64,120.61,0.06109281]
[1741666277025,4.2583,120.66,120.61,0.06109281]
[1741666277333,8.2927,120.64,120.61,0.06109281]
[1741666277531,4.2583,120.66,120.61,0.06109281]
[1741666278027,8.2929,120.63,120.61,0.06109281]
[1741666278526,8.2936,120.62,120.61,0.06109281]
[1741666280627,8.2936,120.62,120.61,9.281e-05]
[1741666283130,12.9255,120.62,120.61,9.281e-05]
[1741666283529,31.98604108,120.62,120.5,27.35414108]
[1741666283729,27.35414108,120.6,120.48,33.71214108]
[1741666283930,27.35414108,120.58,120.49,33.86]
[1741666284129,8.2996,120.54,120.5,8.3018]
[1741666284331,8.2996,120.54,120.49,33.86]
[1741666284636,33.86,120.57,120.49,33.86]
[1741666284837,0.06109281,120.53,120.5,0.05639831]
[1741666285231,8.3012,120.51,120.5,0.05639831]
[1741666285631,8.3012,120.51,120.5,9.831e-05]
[1741666285835,8.3043,120.47,120.45,33.9]
[1741666286140,33.9,120.51,120.43,40.3082]
[1741666287041,0.05301385,120.48,120.46,0.06202245]
[1741666287939,8.35671385,120.48,120.46,0.06202245]
[1741666288139,0.05301385,120.48,120.46,0.06202245]
[1741666288440,8.3039,120.47,120.46,0.06202245]
[1741666290238,33.85301385,120.48,120.39,6.3266]
[1741666290438,4.2218,120.47,120.39,4.2173]
[1741666290639,4.2218,120.47,120.39,2.0179]
[1741666291650,0.05421304,120.44,120.42,0.05250056]
[1741666291839,33.97421304,120.44,120.42,0.05250056]
[1741666292035,33.97421304,120.44,120.36,8.3113]
[1741666292243,33.97421304,120.44,120.36,42.2113]
[1741666292445,33.92,120.44,120.36,42.2113]
[1741666292644,33.92,120.44,120.35,29.37824108]
[1741666292944,33.92,120.44,120.35,63.27824108]
[1741666293146,8.3092,120.4,120.35,63.27824108]
[1741666293346,8.3092,120.4,120.38,0.05430306]
[1741666294850,8.3094,120.39,120.38,0.05430306]
[1741666298457,8.309,120.4,120.38,0.05430306]
[1741666299452,0.05397561,120.41,120.38,0.05430306]
[1741666299656,4.2218,120.47,120.38,0.05430306]
[1741666299657,274.02,120.55,120.4,27.35414108]
[1741666299956,6.2044,120.53,120.46,27.35414108]
[1741666300147,6.2044,120.53,120.44,27.35414108]
[1741666300350,6.2044,120.53,120.43,33.72]
[1741666300552,8.3019,120.5,120.44,8.306]
[1741666300752,0.06368846,120.49,120.47,0.0581235]
[1741666301653,8.3032,120.48,120.47,0.0581235]
[1741666303248,0.06368846,120.49,120.47,0.0581235]
[1741666304859,8.3032,120.48,120.47,0.0581235]
[1741666305154,0.06368846,120.49,120.41,4.2672]
[1741666305358,8.3061,120.44,120.39,41.9093]
[1741666305747,8.3061,120.44,120.39,8.3093]
[1741666305952,8.3076,120.42,120.38,31.54474108]
[1741666306153,8.3076,120.42,120.4,0.05791006]
[1741666306961,0.06277691,120.43,120.4,0.05791006]
[1741666307162,33.64277691,120.43,120.4,0.05791006]
[1741666308055,8.3081,120.41,120.4,0.05791006]
[1741666308257,33.64277691,120.43,120.35,37.7405]
[1741666308458,33.58,120.43,120.35,46.0521]
[1741666309058,33.58,120.43,120.36,8.3113]
[1741666309362,0.05490397,120.41,120.38,0.06073466]
[1741666309760,8.36340397,120.41,120.38,0.06073466]
[1741666310063,0.05490397,120.41,120.38,0.06073466]
[1741666310253,8.3088,120.4,120.38,0.06073466]
[1741666310557,0.05490397,120.41,120.38,0.06073466]
[1741666311759,8.3094,120.39,120.38,0.06073466]
[1741666318466,8.309,120.4,120.38,0.06073466]
[1741666319064,8.3094,120.39,120.38,0.06073466]
[1741666320466,41.9094,120.39,120.38,0.06073466]
[1741666320769,36.1,120.39,120.3,2.1637]
[1741666320968,4.2631,120.38,120.3,2.1637]
[1741666321168,8.3133,120.34,120.3,2.1637]
[1741666321370,4.2631,120.38,120.3,2.1637]
[1741666321673,8.3119,120.36,120.3,2.1637]
[1741666321866,0.05445206,120.35,120.33,0.05431405]
[1741666322369,8.3129,120.34,120.33,0.05431405]
[1741666325071,8.3129,120.34,120.33,1.405e-05]
[1741666325770,29.85414108,120.34,120.22,92.06929108]
[1741666325967,27.35414108,120.31,120.22,98.38729108]
[1741666326166,33.6,120.3,120.23,33.6]
[1741666326371,35.7657,120.33,120.25,27.35414108]
[1741666326672,35.7657,120.33,120.25,35.67284108]
[1741666326869,8.37835577,120.3,120.28,0.06284299]
[1741666327174,0.06225577,120.3,120.28,0.06284299]
[1741666328075,8.3164,120.29,120.28,0.06284299]
[1741666329077,8.3192,120.25,120.22,39.918]
[1741666329275,33.6,120.27,120.22,6.318]
[1741666329677,8.3195,120.25,120.22,6.318]
[1741666330069,33.6,120.27,120.22,6.318]
[1741666330275,8.3754225,120.25,120.22,6.37973159]
[1741666331072,8.3202,120.24,120.22,6.37973159]
[1741666331273,0.0558225,120.25,120.22,6.37973159]
[1741666332069,0.0558225,120.25,120.22,39.97973159]
[1741666332273,33.6,120.3,120.22,39.97973159]
[1741666332676,8.3172,120.28,120.25,8.3189]
[1741666333481,8.37061196,120.28,120.25,8.3769037]
[1741666334582,8.3183,120.27,120.25,0.0580037]
[1741666334783,0.05341196,120.28,120.25,0.0580037]
[1741666335181,8.3184,120.26,120.25,0.0580037]
[1741666335884,0.05341196,120.28,120.25,0.0580037]
[1741666336688,8.3184,120.26,120.25,0.0580037]
[1741666337182,8.3207,120.23,120.19,33.62]
[1741666337486,33.62,120.27,120.18,39.8708]
[1741666337686,8.3209,120.23,120.18,39.8708]
[1741666338589,0.06372443,120.22,120.2,8.3222]
[1741666338888,33.62,120.27,120.18,4.1704]
[1741666339189,8.3219,120.21,120.2,0.05440583]
[1741666340785,8.3241,120.18,120.14,6.3523]
[1741666340981,33.62,120.21,120.14,6.3523]
[1741666341883,0.05526318,120.19,120.16,0.05252369]
[1741666342088,0.05526318,120.19,120.17,27.35414108]
[1741666342278,33.62,120.25,120.17,27.35414108]
[1741666342279,8.3199,120.24,120.21,8.3217]
[1741666342482,4.2175,120.26,120.19,60.97414108]
[1741666342788,8.3187,120.26,120.22,8.3208]
[1741666343388,0.06306264,120.25,120.23,0.05931338]
[1741666343889,0.06306264,120.25,120.23,8.37961338]
[1741666344280,8.38226264,120.25,120.23,0.05931338]
[1741666344483,0.06306264,120.25,120.23,0.05931338]
[1741666345892,0.06306264,120.25,120.23,8.37941338]
[1741666346387,0.06306264,120.25,120.23,0.05931338]
[1741666347191,0.06306264,120.25,120.23,8.37981338]
[1741666347690,8.38216264,120.25,120.23,0.05931338]
[1741666348193,0.06306264,120.25,120.23,0.05931338]
[1741666348385,0.06306264,120.25,120.23,8.37961338]
[1741666348586,0.06306264,120.25,120.23,0.05931338]
[1741666348885,0.06306264,120.25,120.24,8.3198]
[1741666349595,0.06306264,120.25,120.23,0.05931338]
[1741666350289,0.06306264,120.25,120.24,8.3198]
[1741666350489,6.1024,120.31,120.23,0.05931338]
[1741666350794,8.3168,120.29,120.23,27.35414108]
[1741666351384,39.7224,120.31,120.23,27.35414108]
[1741666351587,8.3175,120.28,120.23,27.35414108]
[1741666351791,0.05242531,120.28,120.26,0.0550449]
[1741666352295,8.36952531,120.28,120.26,0.0550449]
[1741666352898,0.05242531,120.28,120.26,0.0550449]
[1741666353097,0.05242531,120.28,120.26,8.3729449]
[1741666354199,8.36952531,120.28,120.26,0.0550449]
[1741666354793,0.05242531,120.28,120.26,8.3733449]
[1741666355198,0.05242531,120.28,120.26,0.0550449]
[1741666355395,308.07394108,120.37,120.26,0.0550449]
[1741666355696,280.7198,120.37,120.27,27.35414108]
[1741666355999,27.35414108,120.41,120.31,27.35414108]
[1741666356202,27.35414108,120.41,120.31,60.97414108]
[1741666356403,8.3099,120.39,120.34,8.3122]
[1741666356597,0.06262692,120.37,120.35,0.0598814]
[1741666357000,10.4431,120.42,120.35,17.13864277]
[1741666357206,2.1355,120.42,120.35,17.13864277]
[1741666357612,10.4433,120.42,120.37,8.3104]
[1741666358207,10.4433,120.42,120.38,8.36328016]
[1741666358414,0.05577125,120.41,120.38,8.36328016]
[1741666358619,0.05577125,120.41,120.38,0.05318016]
[1741666360506,8.36427125,120.41,120.38,0.05318016]
[1741666361108,0.05577125,120.41,120.38,0.05318016]
[1741666362711,0.05577125,120.41,120.38,8.36328016]
[1741666363616,8.36387125,120.41,120.38,0.05318016]
[1741666363815,0.05577125,120.41,120.38,0.05318016]
[1741666364317,35.6601,120.46,120.38,27.37151719]
[1741666364512,33.6,120.46,120.38,31.64443703]
[1741666364709,8.305,120.46,120.42,8.3074]
[1741666365516,0.06147132,120.45,120.43,0.06172809]
[1741666366118,8.36687132,120.45,120.43,0.06172809]
[1741666366918,8.306,120.44,120.43,0.06172809]
[1741666370319,0.06147132,120.45,120.43,0.06172809]
[1741666370714,0.06147132,120.45,120.43,33.64172809]
[1741666370911,0.06147132,120.45,120.44,8.306]
[1741666371110,0.06147132,120.45,120.43,33.64172809]
[1741666374323,0.06147132,120.45,120.43,41.94832809]
[1741666374521,0.06147132,120.45,120.43,33.64172809]
[1741666375824,0.06147132,120.45,120.43,41.94782809]
[1741666376023,0.06147132,120.45,120.43,33.64172809]
[1741666377629,0.06147132,120.45,120.43,41.94842809]
[1741666379721,0.06147132,120.45,120.43,33.64172809]
[1741666379928,0.06147132,120.45,120.44,8.306]
[1741666380121,0.06147132,120.45,120.43,33.64172809]
[1741666380727,0.06147132,120.45,120.43,0.06172809]
[1741666381125,8.306,120.44,120.43,0.06172809]
[1741666381322,60.93980835,120.45,120.38,4.3261]
[1741666381633,2.1368,120.44,120.35,33.56]
[1741666382328,2.1368,120.44,120.37,8.3104]
[1741666382329,8.3083,120.41,120.37,8.3104]
[1741666382529,8.36101947,120.41,120.38,0.05451127]
[1741666383331,8.36101947,120.41,120.38,8.36461127]
[1741666384422,0.05271947,120.41,120.38,0.05451127]
[1741666385032,8.3092,120.4,120.38,0.05451127]
[1741666385230,0.05271947,120.41,120.38,0.05451127]
[1741666385931,8.36121947,120.41,120.38,0.05451127]
[1741666386732,0.05271947,120.41,120.38,0.05451127]
[1741666387233,8.36131947,120.41,120.38,0.05451127]
[1741666387423,0.05271947,120.41,120.38,0.05451127]
[1741666388432,8.3094,120.39,120.38,0.05451127]
[1741666389534,50.63419715,120.4,120.31,54.85679715]
[1741666389735,2.0509,120.38,120.31,54.85679715]
[1741666389941,2.0509,120.38,120.31,21.29679715]
[1741666390234,33.56,120.37,120.3,2.083]
[1741666390731,8.3133,120.34,120.32,0.05961133]
[1741666390934,0.06188528,120.35,120.32,0.05961133]
[1741666391137,0.06188528,120.35,120.32,8.37351133]
[1741666391530,0.06188528,120.35,120.32,0.05961133]
[1741666391836,0.06188528,120.35,120.32,8.37351133]
[1741666392531,8.37418528,120.35,120.32,0.05961133]
[1741666392939,0.06188528,120.35,120.32,0.05961133]
[1741666393440,0.06188528,120.35,120.33,8.3135]
[1741666393637,0.06188528,120.35,120.32,0.05961133]
[1741666393840,0.06188528,120.35,120.32,8.37351133]
[1741666394336,0.06188528,120.35,120.32,0.05961133]
[1741666394642,8.37468528,120.35,120.32,0.05961133]
[1741666395038,8.3134,120.34,120.32,0.05961133]
[1741666395543,0.06188528,120.35,120.32,0.05961133]
[1741666395745,8.37438528,120.35,120.32,8.37371133]
[1741666395937,0.06188528,120.35,120.32,0.05961133]
[1741666397238,8.3129,120.34,120.32,0.05961133]
[1741666397444,0.06188528,120.35,120.32,0.05961133]
[1741666397636,8.3133,120.34,120.32,0.05961133]
[1741666397837,0.06188528,120.35,120.32,0.05961133]
[1741666398445,8.3133,120.34,120.32,0.05961133]
[1741666398743,0.06188528,120.35,120.32,0.05961133]
[1741666398945,0.06188528,120.35,120.32,33.61961133]
[1741666399337,0.06188528,120.35,120.33,17.07419715]
[1741666399742,0.06188528,120.35,120.34,8.3129]
[1741666400838,0.06188528,120.35,120.33,25.38729715]
[1741666401043,0.06188528,120.35,120.32,33.61961133]
[1741666401445,8.3132,120.34,120.32,0.05961133]
[1741666401741,0.06188528,120.35,120.32,0.05961133]
[1741666402741,0.06188528,120.35,120.32,8.37351133]
[1741666403644,8.3129,120.34,120.32,0.05961133]
[1741666403841,0.06188528,120.35,120.32,0.05961133]
[1741666404251,8.3136,120.33,120.32,0.05961133]
[1741666404543,8.3136,120.33,120.27,21.12109715]
[1741666404544,37.8946,120.34,120.27,21.12109715]
[1741666404942,8.315,120.31,120.28,8.3169]
[1741666405339,8.315,120.31,120.27,21.12109715]
[1741666405543,8.315,120.31,120.27,29.43859715]
[1741666405751,8.37322978,120.31,120.28,0.05998996]
[1741666405946,8.3158,120.3,120.28,0.05998996]
[1741666406950,8.3164,120.29,120.28,0.05998996]
[1741666407148,0.05822978,120.31,120.28,0.05998996]
[1741666407548,8.37342978,120.31,120.28,0.05998996]
[1741666407949,8.37342978,120.31,120.28,8.37698996]
[1741666408343,8.37342978,120.31,120.28,0.05998996]
[1741666408740,8.3158,120.3,120.28,0.05998996]
[1741666408940,0.05822978,120.31,120.28,0.05998996]
[1741666409350,8.37342978,120.31,120.28,0.05998996]
[1741666409553,8.37342978,120.31,120.28,8.37698996]
[1741666410749,0.05822978,120.31,120.28,8.37698996]